bitfinex/quotes_ETHUSD_20260130
["timestamp","ask_amount","ask_price","bid_price","bid_amount"]
[1769783054602,14.87930066,2739.7,2738.9,0.01101564]
[1769783055513,14.87930066,2739.7,2738.6,0.01101564]
[1769783055824,14.87930066,2739.7,2738.8,0.01101564]
[1769783057013,14.87930066,2739.7,2738.6,0.01101564]
[1769783057820,14.87930066,2739.7,2738.8,0.01101564]
[1769783058336,14.87930066,2739.7,2738.1,0.01101564]
[1769783058548,14.0,2739.5,2738.6,0.01101564]
[1769783061304,14.0,2739.5,2738.8,0.01101564]
[1769783061529,0.87930066,2739.7,2739.0,0.01101564]
[1769783061732,0.87930066,2739.7,2739.2,0.01101564]
[1769783062612,0.87930066,2739.7,2738.8,0.01101564]
[1769783062613,14.87930066,2739.7,2738.8,0.01101564]
[1769783062916,0.87930066,2739.7,2739.2,0.01101564]
[1769783063625,0.001,2739.3,2739.2,0.01101564]
[1769783065418,0.001,2739.3,2738.9,14.5]
[1769783065622,0.001,2739.3,2739.0,0.01101564]
[1769783067323,0.001,2739.3,2738.6,0.01101564]
[1769783067625,15.4011,2739.3,2738.1,0.01101564]
[1769783067930,14.001,2739.3,2738.1,14.51101564]
[1769783068121,14.001,2739.3,2738.3,0.01101564]
[1769783070040,14.001,2739.3,2738.5,0.01101564]
[1769783072334,14.001,2739.3,2738.3,14.51101564]
[1769783072545,15.4776,2739.3,2738.5,0.01101564]
[1769783074501,15.4776,2739.3,2738.3,14.5]
[1769783075601,15.4776,2739.3,2737.9,0.765]
[1769783076105,15.4776,2739.3,2738.0,14.5]
[1769783076927,16.2426,2739.3,2738.0,14.5]
[1769783077516,14.001,2739.3,2738.0,14.5]
[1769783078240,14.001,2739.3,2738.5,0.01101564]
[1769783078537,14.001,2739.3,2738.7,0.01101564]
[1769783078720,0.001,2739.3,2738.7,0.01101564]
[1769783079323,14.001,2739.3,2738.7,0.01101564]
[1769783079531,15.4013,2739.3,2738.7,0.01101564]
[1769783084653,15.4013,2739.3,2738.5,0.01101564]
[1769783087162,15.4013,2739.3,2738.4,0.01101564]
[1769783087662,15.4013,2739.3,2738.2,0.01101564]
[1769783088256,14.0,2739.0,2738.2,0.01101564]
[1769783089248,14.0,2739.0,2738.4,0.01101564]
[1769783089749,0.001,2739.1,2738.6,0.01101564]
[1769783090155,0.001,2739.1,2738.4,0.01101564]
[1769783090354,0.001,2739.1,2738.8,0.01101564]
[1769783090546,0.001,2739.1,2738.6,0.01101564]
[1769783091837,0.001,2739.1,2738.8,0.01101564]
[1769783092070,0.001,2739.1,2739.0,0.01101564]
[1769783092369,0.002,2739.5,2739.0,0.01101564]
[1769783092537,0.002,2739.5,2739.2,0.01101564]
[1769783096250,0.002,2739.5,2739.0,0.01101564]
[1769783097966,14.002,2739.5,2738.9,14.5]
[1769783099242,14.002,2739.5,2739.0,0.01101564]
[1769783100168,0.002,2739.5,2739.0,0.01101564]
[1769783100371,13.81936234,2740.3,2739.4,0.01101564]
[1769783100669,13.91168117,2740.6,2739.6,0.01101564]
[1769783100877,13.91168117,2740.6,2739.9,0.01101564]
[1769783101374,15.30324929,2740.5,2739.4,0.01101564]
[1769783101541,16.06824929,2740.5,2739.0,0.01101564]
[1769783101873,16.06824929,2740.5,2738.9,14.5]
[1769783102171,13.90968117,2740.1,2738.8,0.001]
[1769783102382,13.90968117,2740.1,2739.1,0.01101564]
[1769783102587,13.90968117,2739.9,2739.1,0.01101564]
[1769783103088,14.67468117,2740.3,2739.3,0.01101564]
[1769783103573,1.39356812,2740.5,2739.7,0.01101564]
[1769783103770,13.91168117,2740.5,2739.5,0.01101564]
[1769783104076,13.91168117,2740.5,2739.3,0.01101564]
[1769783104276,13.91168117,2740.5,2739.5,0.01101564]
[1769783104980,13.91168117,2740.5,2739.7,0.01101564]
[1769783105792,13.91168117,2740.5,2739.3,0.01101564]
[1769783105981,13.90968117,2740.3,2739.3,0.01101564]
[1769783106492,13.90968117,2740.3,2739.5,0.01101564]
[1769783106796,13.90968117,2740.3,2738.9,0.01101564]
[1769783106949,13.90968117,2740.3,2738.8,0.01201564]
[1769783107180,13.90968117,2740.3,2738.8,0.001]
[1769783107508,13.90968117,2739.9,2738.8,0.001]
[1769783107686,1.46746812,2740.2,2738.8,0.001]
[1769783107687,13.90968117,2739.7,2738.8,0.001]
[1769783107880,14.67468117,2739.7,2738.8,0.001]
[1769783109724,13.90968117,2739.7,2738.8,0.001]
[1769783109929,13.90968117,2739.7,2738.9,0.01101564]
[1769783110094,13.90968117,2739.7,2739.1,0.01101564]
[1769783110412,13.90968117,2739.7,2739.3,0.01101564]
[1769783111719,13.90968117,2739.7,2739.1,0.01101564]
[1769783112215,13.90968117,2740.1,2739.1,0.01101564]
[1769783112382,13.90968117,2740.1,2739.3,0.01101564]
[1769783113287,13.90968117,2740.1,2739.1,0.01101564]
[1769783113288,15.30084929,2740.1,2739.1,0.01101564]
[1769783113492,15.30084929,2740.1,2739.0,0.001]
[1769783113917,15.30084929,2740.1,2739.1,0.01101564]
[1769783114906,15.30084929,2740.1,2739.0,0.001]
[1769783115091,0.002,2740.3,2739.0,0.001]
[1769783115092,13.90968117,2739.9,2739.0,0.001]
[1769783116718,13.90968117,2739.9,2739.1,0.01101564]
[1769783121727,1.53008493,2740.0,2739.1,0.01101564]
[1769783122026,13.90968117,2740.2,2739.3,0.01101564]
[1769783123036,13.90968117,2740.2,2739.0,0.001]
[1769783123195,13.90968117,2740.0,2739.0,0.001]
[1769783124795,13.90968117,2740.0,2739.3,0.001]
[1769783126702,13.90968117,2739.8,2739.0,0.001]
[1769783126904,13.90968117,2739.8,2738.8,0.001]
[1769783127899,13.90968117,2739.6,2738.9,0.01101564]
[1769783128099,13.90968117,2739.6,2739.1,0.01101564]
[1769783128433,13.90968117,2739.6,2739.3,0.01101564]
[1769783128641,13.90968117,2739.6,2739.1,0.01101564]
[1769783129727,13.85968117,2739.6,2739.1,0.01101564]
[1769783130225,13.85968117,2739.6,2738.9,0.01101564]
[1769783130603,15.24564929,2739.6,2738.9,0.01101564]
[1769783130808,15.24564929,2739.6,2738.8,0.001]
[1769783131421,13.88468117,2739.2,2738.0,0.01101564]
[1769783131620,13.88468117,2738.8,2737.9,0.002]
[1769783131797,13.88468117,2738.6,2737.9,0.002]
[1769783131997,15.34964929,2738.6,2737.9,0.002]
[1769783132845,13.88468117,2738.6,2737.9,0.002]
[1769783133127,13.88468117,2738.6,2738.1,0.01101564]
[1769783133434,13.88468117,2738.6,2737.9,0.01301564]
[1769783134827,13.88468117,2738.6,2737.9,0.002]
[1769783135361,13.88468117,2738.6,2738.0,0.01101564]
[1769783135561,15.34964929,2738.6,2738.0,0.01101564]
[1769783136422,13.88468117,2738.9,2738.2,0.01101564]
[1769783137456,13.88468117,2738.9,2738.2,0.01201564]
[1769783137646,13.88468117,2738.9,2738.4,0.01101564]
[1769783138072,13.88468117,2738.9,2738.5,0.01101564]
[1769783139559,13.88468117,2738.9,2738.2,0.01201564]
[1769783139727,13.88468117,2738.9,2738.4,0.01101564]
[1769783140235,13.88468117,2738.9,2738.5,0.01101564]
[1769783140444,13.88468117,2738.9,2738.2,0.01201564]
[1769783140656,13.88468117,2738.9,2738.4,0.01101564]
[1769783141735,13.88468117,2738.9,2738.2,0.001]
[1769783141940,15.27314929,2738.9,2738.2,0.01201564]
[1769783142447,15.27314929,2738.9,2738.4,0.01101564]
[1769783142651,13.88468117,2738.9,2738.4,0.01101564]
[1769783143062,0.765,2739.6,2738.6,0.01101564]
[1769783143063,13.88468117,2739.3,2738.6,0.01101564]
[1769783143392,13.88468117,2739.3,2738.8,0.01101564]
[1769783145098,13.88468117,2739.9,2739.2,0.01101564]
[1769783145306,1.38846812,2739.8,2739.2,0.01101564]
[1769783145607,15.27314929,2739.8,2739.0,0.01101564]
[1769783147594,15.27314929,2739.8,2739.2,0.01101564]
[1769783148623,15.27314929,2739.8,2739.0,0.01101564]
[1769783149109,0.001,2739.6,2739.0,0.01101564]
[1769783149413,13.88568117,2739.6,2739.0,0.01101564]
[1769783150326,13.88568117,2739.6,2738.6,0.01101564]
[1769783150681,13.88568117,2739.6,2737.9,0.77801564]
[1769783150994,13.88468117,2739.4,2738.2,0.001]
[1769783151195,13.88468117,2739.2,2738.2,0.001]
[1769783151400,13.88468117,2739.0,2738.2,0.001]
[1769783151583,13.88468117,2739.0,2738.3,0.01101564]
[1769783152487,13.88468117,2739.0,2738.2,0.001]
[1769783161915,13.88468117,2739.3,2738.7,0.01101564]
[1769783162212,13.88468117,2739.3,2738.5,0.01101564]
[1769783163156,15.36008929,2739.3,2738.2,0.001]
[1769783165200,13.88468117,2739.1,2738.2,0.001]
[1769783165402,13.88468117,2739.1,2738.3,0.01101564]
[1769783165819,13.88468117,2739.1,2738.2,0.001]
[1769783167930,13.88468117,2739.1,2738.3,0.01101564]
[1769783168232,14.55134642,2739.0,2738.2,0.001]
[1769783168434,14.53255913,2739.0,2738.2,0.001]
[1769783168937,15.29855913,2739.0,2738.2,0.001]
[1769783169638,15.29855913,2739.0,2738.3,0.01101564]
[1769783170749,15.29855913,2739.0,2738.2,0.001]
[1769783171046,13.88468117,2738.8,2738.2,0.001]
[1769783171256,13.88468117,2738.8,2738.0,0.01101564]
[1769783171456,13.88468117,2738.8,2737.9,0.002]
[1769783172859,13.88468117,2738.8,2738.0,0.01101564]
[1769783173033,13.88468117,2738.8,2738.2,0.01101564]
[1769783179066,15.41463708,2738.8,2738.2,0.01101564]
[1769783180039,15.41463708,2738.8,2738.0,0.01101564]
[1769783180235,15.41463708,2738.8,2737.9,0.01301564]
[1769783180436,15.41463708,2738.8,2737.9,0.002]
[1769783180870,13.88468117,2738.6,2737.5,0.002]
[1769783181045,0.001,2738.9,2737.5,0.002]
[1769783181046,13.88468117,2738.4,2737.5,0.002]
[1769783181249,13.88468117,2738.4,2737.6,0.01101564]
[1769783181449,14.65068117,2738.3,2737.6,0.01101564]
[1769783182792,1.38846812,2738.5,2737.8,0.01101564]
[1769783182793,15.27314929,2738.5,2737.8,0.01101564]
[1769783182950,13.88468117,2738.5,2737.8,0.01101564]
[1769783184797,0.001,2738.9,2738.0,0.01101564]
[1769783185093,13.98858117,2738.9,2738.2,0.01101564]
[1769783185296,15.46403929,2738.9,2738.2,0.01101564]
[1769783186285,15.46403929,2738.9,2738.0,0.01101564]
[1769783187085,15.46403929,2738.9,2738.2,0.01101564]
[1769783187291,13.98858117,2738.9,2738.2,0.01101564]
[1769783188282,13.88618117,2738.9,2738.2,0.01101564]
[1769783191163,13.88618117,2738.9,2738.0,0.01101564]
[1769783191386,13.88618117,2738.9,2737.7,0.002]
[1769783192326,14.65118117,2738.8,2738.0,0.01101564]
[1769783194368,14.65118117,2738.8,2737.7,0.002]
[1769783194369,15.98483017,2738.8,2737.9,0.01101564]
[1769783194573,15.98483017,2738.8,2738.0,0.01101564]
[1769783196030,15.98483017,2738.8,2737.7,0.01301564]
[1769783196204,15.98483017,2738.8,2737.9,0.01101564]
[1769783196608,15.98483017,2738.8,2737.7,0.01301564]
[1769783196778,13.88618117,2738.6,2737.7,0.002]
[1769783198198,13.88618117,2738.6,2737.8,0.01101564]
[1769783198400,13.88618117,2738.6,2738.2,0.01101564]
[1769783199332,13.88618117,2738.6,2738.0,0.01101564]
[1769783199535,13.88618117,2738.6,2738.2,0.01101564]
[1769783199740,0.001,2738.6,2738.2,0.01101564]
[1769783201922,0.001,2738.6,2738.0,0.01101564]
[1769783203137,0.001,2738.6,2738.2,0.01101564]
[1769783204136,0.001,2738.6,2738.0,0.01101564]
[1769783204612,13.88618117,2738.6,2738.0,0.01101564]
[1769783205004,15.27479929,2738.6,2737.7,0.01301564]
[1769783205224,15.27479929,2738.6,2737.9,0.01101564]
[1769783205426,15.27479929,2738.6,2737.7,0.01301564]
[1769783205634,15.27479929,2738.6,2737.7,0.002]
[1769783205941,13.88518117,2738.4,2737.7,0.002]
[1769783206305,13.88518117,2738.4,2737.8,0.01101564]
[1769783207733,13.88518117,2738.4,2737.7,0.002]
[1769783208251,13.88518117,2738.4,2737.8,0.01101564]
[1769783209056,13.88518117,2738.4,2737.9,0.002]
[1769783209220,15.50304728,2738.3,2737.9,0.002]
[1769783210449,13.88518117,2738.3,2737.9,0.002]
[1769783214172,0.001,2738.6,2738.1,0.01101564]
[1769783214330,0.001,2738.6,2738.0,0.01101564]
[1769783214735,0.001,2738.6,2738.2,0.01101564]
[1769783215144,13.88618117,2738.6,2737.9,0.002]
[1769783215454,15.28503929,2738.6,2737.9,0.002]
[1769783216771,13.88518117,2738.4,2737.9,0.002]
[1769783218783,13.88518117,2738.4,2737.7,0.002]
[1769783219089,13.88518117,2738.4,2737.5,0.002]
[1769783219242,13.88518117,2738.2,2737.5,0.002]
[1769783219448,13.88518117,2738.0,2737.5,0.002]
[1769783219978,13.88518117,2738.0,2736.8,0.002]
[1769783220297,13.88418117,2737.8,2736.9,0.01101564]
[1769783220442,13.88418117,2737.6,2736.9,0.01101564]
[1769783220794,14.65018117,2737.6,2736.8,0.002]
[1769783221146,14.65018117,2737.6,2736.9,0.01101564]
[1769783221674,14.65018117,2737.6,2736.8,0.002]
[1769783221877,14.65018117,2737.6,2736.9,0.01101564]
[1769783222060,16.2550651,2737.6,2736.8,0.002]
[1769783222267,0.766,2737.6,2737.1,0.01101564]
[1769783222443,14.65018117,2737.6,2736.9,0.01101564]
[1769783222959,14.65018117,2737.6,2737.1,0.01101564]
[1769783223362,14.65018117,2737.6,2736.9,0.01101564]
[1769783225475,14.65018117,2737.6,2737.1,0.01101564]
[1769783225875,16.11519929,2737.6,2737.1,0.01101564]
[1769783226056,16.11519929,2737.6,2736.9,0.01101564]
[1769783226676,16.11519929,2737.6,2737.1,0.01101564]
[1769783227192,16.11519929,2737.6,2736.9,0.01101564]
[1769783227558,16.11519929,2737.6,2737.1,0.01101564]
[1769783227896,16.11519929,2737.6,2736.9,0.01101564]
[1769783228893,15.54221911,2737.5,2736.9,0.01101564]
[1769783229067,15.54221911,2737.5,2736.8,0.002]
[1769783229396,15.54221911,2737.5,2736.9,0.01101564]
[1769783229697,15.54221911,2737.5,2736.8,0.002]
[1769783229906,15.54221911,2737.5,2736.9,0.01101564]
[1769783230095,15.48492109,2737.4,2736.9,0.01101564]
[1769783230400,15.48492109,2737.4,2736.8,0.002]
[1769783230588,15.48492109,2737.4,2736.9,0.01101564]
[1769783231097,15.48492109,2737.4,2736.8,0.002]
[1769783231317,15.48492109,2737.4,2736.9,0.01101564]
[1769783231910,13.93069918,2737.2,2736.6,1.25573945]
[1769783232068,2.01242454,2737.3,2736.7,0.00941564]
[1769783232273,5.45418163,2737.9,2736.9,0.01101564]
[1769783232274,0.766,2737.4,2736.9,0.01101564]
[1769783232497,13.93069918,2737.6,2736.9,0.01101564]
[1769783232797,13.93069918,2737.6,2737.1,0.01101564]
[1769783232798,14.69669918,2737.6,2737.1,0.01101564]
[1769783233167,14.69669918,2737.6,2736.9,0.01101564]
[1769783233368,1.46966992,2737.5,2736.9,0.01101564]
[1769783233569,15.4003691,2737.5,2736.9,0.01101564]
[1769783233790,15.4003691,2737.5,2736.6,1.25493945]
[1769783235769,15.4003691,2737.5,2736.8,0.002]
[1769783236507,0.767,2737.4,2736.8,0.002]
[1769783236694,2.38373691,2737.4,2736.8,0.002]
[1769783237193,16.31443609,2737.4,2736.8,0.002]
[1769783238886,15.54843609,2737.4,2736.9,0.01101564]
[1769783239302,0.001,2737.4,2736.9,0.01101564]
[1769783239502,0.001,2737.4,2736.8,0.002]
[1769783239670,13.93169918,2737.4,2736.8,0.002]
[1769783240003,0.001,2737.4,2736.9,0.01101564]
[1769783240192,0.001,2737.4,2737.1,0.01101564]
[1769783240511,0.001,2737.4,2736.9,0.01101564]
[1769783241368,0.001,2737.4,2736.8,0.002]
[1769783241369,13.93169918,2737.4,2736.8,0.002]
[1769783241805,15.3248691,2737.4,2736.8,0.002]
[1769783242903,15.3248691,2737.4,2736.9,0.01101564]
[1769783244927,15.3248691,2737.4,2736.8,0.002]
[1769783247311,13.93169918,2737.4,2736.8,0.002]
[1769783247476,13.93169918,2737.4,2736.9,0.01101564]
[1769783247681,0.001,2737.4,2736.9,0.01101564]
[1769783248808,0.001,2737.2,2736.9,0.01101564]
[1769783251492,13.93169918,2737.2,2736.8,0.002]
[1769783252713,15.3249691,2737.2,2736.8,0.002]
[1769783253613,16.0909691,2737.2,2736.8,0.002]
[1769783254917,15.3249691,2737.2,2736.8,0.002]
[1769783255218,13.93169918,2737.2,2736.8,0.002]
[1769783257438,14.69769918,2737.2,2736.8,0.002]
[1769783259814,13.93169918,2737.2,2736.8,0.002]
[1769783260015,0.001,2737.2,2736.8,0.002]
[1769783260193,0.001,2737.0,2736.8,0.002]
[1769783261016,13.87887335,2737.0,2736.8,0.002]
[1769783263743,13.87887335,2737.0,2736.5,0.002]
[1769783263932,13.87627335,2736.8,2736.2,0.0004]
[1769783264236,13.87467335,2736.4,2735.6,0.00981564]
[1769783264423,15.26054069,2736.4,2735.6,0.00981564]
[1769783265798,15.26054069,2736.4,2735.2,0.01101564]
[1769783265799,15.26054069,2736.4,2735.2,0.26166894]
[1769783266210,15.26054069,2736.4,2735.2,0.01101564]
[1769783266413,15.26054069,2736.4,2735.4,0.01101564]
[1769783267131,15.26054069,2736.4,2735.2,0.01101564]
[1769783267327,13.87467335,2736.2,2735.4,0.01101564]
[1769783267830,13.87467335,2736.2,2735.3,0.01101564]
[1769783268203,13.87467335,2735.8,2734.8,0.01101564]
[1769783268534,13.87467335,2735.8,2734.5,0.26166894]
[1769783269133,13.87467335,2735.8,2734.5,14.76166894]
[1769783269352,13.87467335,2735.2,2734.5,14.5]
[1769783269637,5.35178163,2735.3,2734.0,0.2506533]
[1769783269638,15.79731885,2735.1,2734.2,0.01101564]
[1769783269837,15.79731885,2735.1,2734.0,0.01101564]
[1769783269999,15.79731885,2735.1,2734.4,0.01101564]
[1769783270202,15.79731885,2735.1,2734.2,0.01101564]
[1769783271249,13.87467335,2734.9,2733.8,0.01101564]
[1769783271412,13.87467335,2734.7,2733.8,0.01101564]
[1769783272641,13.87467335,2734.7,2733.6,0.01101564]
[1769783272837,13.87467335,2734.7,2734.3,0.002]
[1769783273336,13.87467335,2734.7,2733.6,0.00941564]
[1769783274415,13.87467335,2734.7,2733.8,0.01101564]
[1769783274739,13.87467335,2734.7,2734.0,0.01101564]
[1769783275335,13.87467335,2734.7,2733.8,0.01101564]
[1769783275530,13.87467335,2734.7,2734.0,0.01101564]
[1769783277413,13.87467335,2734.7,2733.9,14.5]
[1769783279341,13.87467335,2734.7,2734.0,0.01101564]
[1769783279525,13.87367335,2735.0,2734.0,0.01101564]
[1769783280115,13.87367335,2735.0,2733.9,14.5]
[1769783280441,13.87367335,2734.1,2732.7,0.92584366]
[1769783280642,15.7972438,2734.0,2733.1,0.01101564]
[1769783280942,13.87367335,2734.0,2732.9,0.01101564]
[1769783281121,13.87367335,2734.0,2733.1,0.01101564]
[1769783281322,14.71231162,2734.8,2733.3,0.01101564]
[1769783281537,0.40915612,2734.8,2734.4,0.01101564]
[1769783281837,13.9984,2735.4,2734.6,0.01101564]
[1769783282218,13.9984,2735.4,2734.4,14.5]
[1769783282419,13.9984,2735.4,2734.3,0.766]
[1769783283423,13.9992,2735.1,2734.1,14.5]
[1769783283628,13.9992,2734.8,2733.8,0.01101564]
[1769783284715,1.93612312,2735.0,2734.2,0.01101564]
[1769783284914,13.9992,2735.3,2734.2,0.01101564]
[1769783285321,13.9992,2735.3,2733.8,0.01101564]
[1769783285732,13.9992,2735.3,2734.2,0.01101564]
[1769783285960,13.9992,2735.9,2734.8,0.01101564]
[1769783286453,13.9992,2735.9,2735.0,0.01101564]
[1769783286820,15.39912,2735.9,2734.9,14.5]
[1769783288028,13.9992,2736.2,2734.9,14.5]
[1769783288239,0.34255237,2736.4,2735.4,0.01101564]
[1769783288851,0.34255237,2736.4,2735.6,0.01101564]
[1769783289153,0.34095237,2736.4,2735.8,0.01101564]
[1769783289448,14.34095237,2736.4,2735.6,0.01101564]
[1769783289751,0.34095237,2736.4,2735.7,0.01101564]
[1769783290443,0.34095237,2736.4,2735.9,0.01101564]
[1769783290750,14.34095237,2736.4,2735.4,0.01101564]
[1769783290918,14.34095237,2736.4,2735.6,0.01101564]
[1769783291320,14.34095237,2736.4,2735.4,0.01101564]
[1769783292023,14.0,2736.2,2735.4,0.01101564]
[1769783292221,14.0,2736.2,2735.1,0.766]
[1769783292616,14.0,2736.2,2735.2,0.01101564]
[1769783294994,0.34095237,2736.4,2735.4,0.01101564]
[1769783295202,0.34095237,2736.4,2735.6,0.01101564]
[1769783295344,0.34095237,2736.4,2735.6,0.92488711]
[1769783295530,0.34095237,2736.4,2735.8,0.01101564]
[1769783296468,14.34095237,2736.4,2735.4,0.01101564]
[1769783296672,15.77504761,2736.4,2735.4,0.01101564]
[1769783296843,15.77504761,2736.4,2735.2,0.77701564]
[1769783297043,15.77504761,2736.4,2735.6,0.01101564]
[1769783297382,0.34095237,2736.4,2735.8,0.01101564]
[1769783297843,0.34095237,2736.4,2736.0,0.01101564]
[1769783298828,0.001,2736.2,2736.0,0.01101564]
[1769783300168,14.0,2736.7,2736.0,0.00941564]
[1769783300365,14.0,2736.7,2736.0,0.00781564]
[1769783300569,14.0,2736.7,2735.8,0.01101564]
[1769783302159,14.0,2736.7,2736.0,0.01101564]
[1769783303766,14.0,2736.7,2735.8,0.01101564]
[1769783305693,14.0,2736.7,2736.0,0.01101564]
[1769783307290,14.0,2736.7,2735.8,0.01101564]
[1769783307760,14.0,2736.7,2736.0,0.01101564]
[1769783308661,14.001,2737.0,2736.2,0.01101564]
[1769783310197,14.001,2737.0,2736.4,0.01101564]
[1769783310363,14.001,2737.0,2736.3,0.01101564]
[1769783311398,14.001,2736.8,2736.3,0.01101564]
[1769783311566,14.001,2736.8,2736.0,0.002]
[1769783311892,14.001,2736.8,2736.1,0.01101564]
[1769783312264,14.001,2736.8,2736.3,0.01101564]
[1769783312868,0.001,2737.0,2736.3,0.01101564]
[1769783313196,0.0004,2737.2,2736.7,0.01101564]
[1769783313993,14.0004,2737.2,2736.5,0.01101564]
[1769783314198,15.40054,2737.2,2736.3,0.01101564]
[1769783314867,14.0004,2737.2,2736.3,0.01101564]
[1769783315397,14.0004,2737.2,2736.5,0.01101564]
[1769783315699,14.0004,2737.2,2736.3,0.01101564]
[1769783315869,14.0004,2737.2,2736.5,0.01101564]
[1769783316669,14.0004,2737.2,2736.3,0.01101564]
[1769783317512,14.0004,2737.2,2736.1,0.01101564]
[1769783317704,14.0004,2737.2,2736.3,0.01101564]
[1769783317904,15.40054,2737.2,2736.3,0.01101564]
[1769783321619,15.40054,2737.2,2736.1,0.01101564]
[1769783321904,15.40054,2737.2,2736.5,0.01101564]
[1769783323284,15.40054,2737.2,2736.1,0.01101564]
[1769783324388,15.40054,2737.2,2736.5,0.002]
[1769783324600,14.0,2737.0,2736.5,0.002]
[1769783325190,14.0,2737.0,2736.3,0.002]
[1769783325399,14.0,2737.0,2736.3,0.0004]
[1769783325817,13.999,2736.8,2736.0,0.88572606]
[1769783326031,13.999,2736.8,2735.8,0.002]
[1769783326203,13.58033557,2736.6,2735.8,0.002]
[1769783330222,13.58033557,2736.6,2736.1,0.01101564]
[1769783330423,13.58033557,2736.6,2735.9,0.01101564]
[1769783330790,13.58033557,2736.9,2736.1,0.01101564]
[1769783331100,13.58033557,2736.9,2736.3,0.01101564]
[1769783331311,0.0004,2737.2,2736.5,0.01101564]
[1769783332299,0.0004,2737.2,2736.7,0.01101564]
[1769783332521,13.58033557,2737.3,2736.5,0.01101564]
[1769783332522,13.57240617,2737.3,2736.5,0.01101564]
[1769783332727,13.57080617,2737.3,2736.5,0.00941564]
[1769783334719,0.001,2737.4,2736.7,0.01101564]
[1769783335416,13.57657087,2737.4,2736.5,0.00941564]
[1769783335618,14.93422796,2737.4,2736.5,0.00941564]
[1769783336906,0.001,2737.0,2736.5,0.00941564]
[1769783339635,13.57657087,2737.0,2736.3,0.01101564]
[1769783339840,13.57657087,2737.0,2736.5,0.01101564]
[1769783340335,13.57657087,2737.0,2736.1,0.01101564]
[1769783340512,13.57557087,2736.8,2736.1,0.01101564]
[1769783340712,13.57557087,2736.8,2735.9,0.01101564]
[1769783340907,13.57557087,2736.8,2735.8,0.002]
[1769783341113,14.34157087,2736.8,2735.8,0.01301564]
[1769783341309,13.57557087,2736.8,2736.0,0.01101564]
[1769783341516,1.5699228,2736.7,2736.0,0.01101564]
[1769783341821,13.57557087,2736.6,2735.8,0.002]
[1769783342566,13.57457087,2736.4,2735.4,0.81895161]
[1769783342719,13.57457087,2736.4,2735.2,0.002]
[1769783342720,13.32035184,2736.2,2735.2,0.002]
[1769783343050,13.32035184,2736.2,2735.0,0.002]
[1769783343227,13.32035184,2736.0,2735.0,0.002]
[1769783344614,1.40863518,2736.1,2734.7,0.002]
[1769783344615,13.32035184,2735.8,2734.7,0.002]
[1769783344921,13.31875184,2735.6,2734.7,0.0004]
[1769783346342,13.31875184,2735.6,2734.8,0.01101564]
[1769783346843,13.31875184,2735.6,2734.7,0.0004]
[1769783348426,13.31875184,2735.6,2735.0,0.002]
[1769783360230,13.88949322,2735.3,2735.0,0.002]
[1769783361063,15.27854254,2735.3,2734.0,0.01301564]
[1769783361266,15.27854254,2735.3,2734.2,0.01101564]
[1769783363884,15.27854254,2735.3,2734.0,0.002]
[1769783364057,15.27854254,2735.3,2734.0,0.01301564]
[1769783364371,13.88949322,2735.1,2734.0,0.01301564]
[1769783365455,13.88949322,2735.1,2734.0,0.002]
[1769783366342,2.29395425,2735.2,2734.0,0.002]
[1769783366343,13.88949322,2734.9,2734.0,0.002]
[1769783370489,13.99189322,2735.1,2734.0,0.002]
[1769783370789,13.88949322,2735.1,2734.1,0.01101564]
[1769783371489,13.88949322,2735.1,2734.3,0.01101564]
[1769783371864,13.89049322,2735.4,2734.3,0.01101564]
[1769783372065,0.001,2735.4,2734.5,0.01101564]
[1769783372392,13.88789322,2735.7,2734.6,14.5]
[1769783373470,13.88789322,2735.7,2734.7,0.01101564]
[1769783374089,13.88789322,2735.7,2734.6,14.5]
[1769783374555,13.88789322,2735.7,2734.3,0.01101564]
[1769783374763,13.88949322,2735.5,2734.2,0.002]
[1769783375164,13.88949322,2735.5,2734.2,14.502]
[1769783375875,13.88949322,2735.5,2734.3,0.01101564]
[1769783376698,0.1024,2736.2,2734.6,1.67740987]
[1769783376699,13.16129506,2735.8,2734.6,1.67740987]
[1769783377001,13.16129506,2735.8,2734.7,0.01101564]
[1769783377196,13.16129506,2735.8,2734.8,14.5]
[1769783379997,13.16129506,2735.8,2734.5,0.01101564]
[1769783380402,13.16129506,2735.8,2734.5,0.767]
[1769783380705,13.16129506,2735.8,2734.3,14.51101564]
[1769783381203,13.16129506,2735.6,2734.2,0.002]
[1769783381403,13.16129506,2735.4,2734.2,0.002]
[1769783385405,13.16129506,2735.4,2734.3,0.002]
[1769783387986,1.39282951,2735.5,2734.3,1.68140987]
[1769783388188,13.16129506,2735.6,2734.4,0.01101564]
[1769783388601,13.16129506,2735.6,2734.3,0.002]
[1769783389504,13.16129506,2735.6,2734.3,0.01301564]
[1769783390211,13.16129506,2735.6,2734.4,14.5]
[1769783391215,13.16129506,2735.6,2734.3,0.01301564]
[1769783391414,1.31612951,2735.5,2734.3,0.01301564]
[1769783391598,13.16029506,2735.4,2734.3,0.01301564]
[1769783391787,13.16029506,2735.4,2734.3,14.51301564]
[1769783392630,0.001,2735.6,2734.4,1.67940987]
[1769783392631,0.1034,2735.6,2734.4,1.67940987]
[1769783392818,13.26369506,2735.6,2734.4,1.67940987]
[1769783393311,13.16129506,2735.6,2734.4,1.67940987]
[1769783394221,13.16129506,2735.6,2734.3,14.51301564]
[1769783395417,0.001,2735.6,2734.7,0.01101564]
[1769783395912,13.16129506,2735.6,2734.5,0.01101564]
[1769783396916,13.16129506,2735.6,2734.3,16.18140987]
[1769783397219,13.16129506,2735.6,2734.5,0.767]
[1769783397423,13.16129506,2735.6,2734.4,1.69042551]
[1769783397633,13.16129506,2735.6,2734.5,0.767]
[1769783397794,13.16129506,2735.6,2734.5,0.769]
[1769783398194,13.16129506,2735.4,2734.5,0.769]
[1769783399232,0.001,2735.4,2734.5,0.769]
[1769783399441,13.15969506,2736.0,2734.9,0.01101564]
[1769783399600,13.15809506,2736.0,2734.9,0.00941564]
[1769783399930,13.15649506,2736.0,2734.7,1.69042551]
[1769783400121,13.15649506,2736.0,2734.6,1.69322551]
[1769783400320,13.15649506,2736.0,2734.5,0.769]
[1769783400620,13.15889506,2735.8,2734.5,0.769]
[1769783400936,13.15889506,2735.8,2734.5,0.002]
[1769783401299,13.15889506,2735.6,2734.5,0.002]
[1769783401506,0.1024,2735.7,2734.5,1.68420987]